[Event "*** Titled Tuesday Blitz"]
[Site "Chess.com"]
[Date "2020.10.27"]
[Round "9"]
[White "ChessAurochs"]
[Black "dpopadic"]
[Result "1-0"]
[WhiteElo "2549"]
[BlackElo "2393"]
[TimeControl "180+1"]
[EndTime "11:45:39 PDT"]
[Termination "ChessAurochs won by resignation"]

1. e4 {[%clk 0:03:00.9]} 1... c5 {[%clk 0:02:58.3]} 2. Nf3 {[%clk 0:02:58.7]}
2... Nc6 {[%clk 0:02:56.9]} 3. Bb5 {[%clk 0:02:57.8]} 3... e5 {[%clk 0:02:56.1]}
4. O-O {[%clk 0:02:56.6]} 4... d6 {[%clk 0:02:55.4]} 5. d3 {[%clk 0:02:54.5]}
5... Nf6 {[%clk 0:02:50.6]} 6. c3 {[%clk 0:02:53.2]} 6... Be7 {[%clk 0:02:50.3]}
7. Nbd2 {[%clk 0:02:49.9]} 7... O-O {[%clk 0:02:48.5]} 8. h3 {[%clk 0:02:41.6]}
8... Bd7 {[%clk 0:02:43.7]} 9. Ba4 {[%clk 0:02:40.5]} 9... Qc7 {[%clk
0:02:35.4]} 10. Re1 {[%clk 0:02:38.3]} 10... h6 {[%clk 0:02:31.8]} 11. Nf1
{[%clk 0:02:37.3]} 11... Rfe8 {[%clk 0:02:23.2]} 12. Ne3 {[%clk 0:02:34.2]}
12... Bf8 {[%clk 0:02:22.3]} 13. Bd2 {[%clk 0:02:22.1]} 13... g6 {[%clk
0:02:15.2]} 14. b4 {[%clk 0:02:21.1]} 14... cxb4 {[%clk 0:02:11.9]} 15. cxb4
{[%clk 0:02:22]} 15... a6 {[%clk 0:02:04.5]} 16. Rc1 {[%clk 0:02:19.6]} 16...
Qd8 {[%clk 0:02:03.1]} 17. Bb3 {[%clk 0:02:15]} 17... Be6 {[%clk 0:01:56.8]} 18.
Bxe6 {[%clk 0:02:10.6]} 18... Rxe6 {[%clk 0:01:55.2]} 19. Qb3 {[%clk 0:02:10.9]}
19... Kg7 {[%clk 0:01:29.4]} 20. Rc2 {[%clk 0:02:03.7]} 20... Re8 {[%clk
0:01:27.2]} 21. Rec1 {[%clk 0:02:02]} 21... Qd7 {[%clk 0:01:22.5]} 22. a4 {[%clk
0:01:44.2]} 22... Rec8 {[%clk 0:01:16.2]} 23. Nc4 {[%clk 0:01:27.2]} 23... Qd8
{[%clk 0:01:06]} 24. Be3 {[%clk 0:01:21.9]} 24... Nd7 {[%clk 0:01:05.1]} 25. b5
{[%clk 0:01:20.7]} 25... axb5 {[%clk 0:00:55.9]} 26. Qxb5 {[%clk 0:01:11.3]}
26... Rcb8 {[%clk 0:00:50.3]} 27. d4 {[%clk 0:00:57.8]} 27... exd4 {[%clk
0:00:41.8]} 28. Nxd4 {[%clk 0:00:58.7]} 28... Nxd4 {[%clk 0:00:40.9]} 29. Bxd4+
{[%clk 0:00:58.4]} 29... Kg8 {[%clk 0:00:40.8]} 30. Ba1 {[%clk 0:00:45.7]} 30...
Qe7 {[%clk 0:00:33.9]} 31. Qb2 {[%clk 0:00:38.7]} 31... f6 {[%clk 0:00:28.6]}
32. Ne3 {[%clk 0:00:29.6]} 32... Bg7 {[%clk 0:00:23.4]} 33. Rc7 {[%clk
0:00:24.7]} 33... Qd8 {[%clk 0:00:23.1]} 34. Qb3+ {[%clk 0:00:23.5]} 34... Kh8
{[%clk 0:00:20.2]} 35. Qf7 {[%clk 0:00:21.3]} 35... Qf8 {[%clk 0:00:12.7]} 36.
Qxd7 {[%clk 0:00:18.2]} 36... Rxa4 {[%clk 0:00:09.8]} 37. Qxa4 {[%clk
0:00:17.5]} 37... b6 {[%clk 0:00:08.7]} 38. Qd7 {[%clk 0:00:17.1]} 38... Rd8
{[%clk 0:00:07.7]} 39. Qe7 {[%clk 0:00:16.5]} 1-0

[Event "*** Titled Tuesday Blitz"]
[Site "Chess.com"]
[Date "2020.10.27"]
[Round "9"]
[White "DrMamaliga"]
[Black "malakismayil"]
[Result "1-0"]
[WhiteElo "2348"]
[BlackElo "2246"]
[TimeControl "180+1"]
[EndTime "11:45:41 PDT"]
[Termination "DrMamaliga won on time"]

1. c4 {[%clk 0:03:00.9]} 1... e5 {[%clk 0:02:59.1]} 2. Nc3 {[%clk 0:03:00.4]}
2... Nf6 {[%clk 0:02:59.2]} 3. Nf3 {[%clk 0:02:59.2]} 3... Nc6 {[%clk
0:02:57.9]} 4. e3 {[%clk 0:02:57.7]} 4... Bb4 {[%clk 0:02:55.7]} 5. Qc2 {[%clk
0:02:57.9]} 5... d6 {[%clk 0:02:53.9]} 6. Nd5 {[%clk 0:02:55.7]} 6... Bc5 {[%clk
0:02:53.6]} 7. Be2 {[%clk 0:02:54.1]} 7... O-O {[%clk 0:02:52.2]} 8. O-O {[%clk
0:02:53.6]} 8... Be6 {[%clk 0:02:50.5]} 9. Nxf6+ {[%clk 0:02:45.1]} 9... Qxf6
{[%clk 0:02:51.4]} 10. a3 {[%clk 0:02:46]} 10... a5 {[%clk 0:02:48]} 11. b3
{[%clk 0:02:44.6]} 11... e4 {[%clk 0:02:13.3]} 12. Bb2 {[%clk 0:02:42.1]} 12...
Qg6 {[%clk 0:01:15.6]} 13. Nd4 {[%clk 0:02:36.5]} 13... f5 {[%clk 0:01:08.9]}
14. Qc3 {[%clk 0:02:19]} 14... Ne5 {[%clk 0:01:06.2]} 15. b4 {[%clk 0:02:14.8]}
15... Bxd4 {[%clk 0:00:48]} 16. Qxd4 {[%clk 0:02:13.5]} 16... Rf7 {[%clk
0:00:44.6]} 17. f4 {[%clk 0:02:07.8]} 17... Ng4 {[%clk 0:00:36.4]} 18. h3 {[%clk
0:02:04.7]} 18... Nf6 {[%clk 0:00:34.9]} 19. c5 {[%clk 0:01:59.2]} 19... Rd7
{[%clk 0:00:29.8]} 20. Bc4 {[%clk 0:01:47.6]} 20... Bxc4 {[%clk 0:00:26.3]} 21.
Qxc4+ {[%clk 0:01:48.5]} 21... d5 {[%clk 0:00:26.4]} 22. Qd4 {[%clk 0:01:47.1]}
22... c6 {[%clk 0:00:26.4]} 23. Bc3 {[%clk 0:01:41.5]} 23... a4 {[%clk
0:00:25.5]} 24. b5 {[%clk 0:01:40.8]} 24... Nh5 {[%clk 0:00:17.2]} 25. Rab1
{[%clk 0:01:35.1]} 25... Ng3 {[%clk 0:00:16.3]} 26. Rf2 {[%clk 0:01:34.7]} 26...
Qh5 {[%clk 0:00:14]} 27. bxc6 {[%clk 0:01:25.9]} 27... bxc6 {[%clk 0:00:14.9]}
28. Kh2 {[%clk 0:01:17.3]} 28... Ne2 {[%clk 0:00:11.3]} 29. Qe5 {[%clk
0:01:06.2]} 29... Nxc3 {[%clk 0:00:09.8]} 30. dxc3 {[%clk 0:01:06.2]} 30... h6
{[%clk 0:00:06.6]} 31. Rfb2 {[%clk 0:01:05.3]} 31... Kh7 {[%clk 0:00:05.8]} 32.
Rb7 {[%clk 0:01:04.5]} 32... Qf7 {[%clk 0:00:05.5]} 33. R7b6 {[%clk 0:00:48.8]}
33... Rc8 {[%clk 0:00:05.2]} 34. Ra6 {[%clk 0:00:48]} 34... Rdc7 {[%clk
0:00:04.8]} 35. Rxa4 {[%clk 0:00:46.5]} 35... Re8 {[%clk 0:00:03.8]} 36. Qd4
{[%clk 0:00:46]} 36... Rb7 {[%clk 0:00:02]} 37. Rb6 {[%clk 0:00:45]} 37... Rc7
{[%clk 0:00:01.6]} 38. Raa6 {[%clk 0:00:43.8]} 38... Rec8 {[%clk 0:00:02.1]} 39.
a4 {[%clk 0:00:42.2]} 39... Qg6 {[%clk 0:00:01.1]} 40. Rb2 {[%clk 0:00:37.6]}
40... Qh5 {[%clk 0:00:01.6]} 41. Rab6 {[%clk 0:00:36.6]} 41... Qf7 {[%clk
0:00:02.1]} 42. a5 {[%clk 0:00:36.3]} 42... Ra7 {[%clk 0:00:01.9]} 43. Qa4
{[%clk 0:00:36.4]} 43... Rcc7 {[%clk 0:00:02.5]} 44. Rxc6 {[%clk 0:00:34.6]}
44... Qe8 {[%clk 0:00:02]} 45. Rbb6 {[%clk 0:00:32.5]} 1-0

[Event "*** Titled Tuesday Blitz"]
[Site "Chess.com"]
[Date "2020.10.27"]
[Round "9"]
[White "AIROPITO7"]
[Black "anon102030"]
[Result "1-0"]
[WhiteElo "2611"]
[BlackElo "2732"]
[TimeControl "180+1"]
[EndTime "11:45:43 PDT"]
[Termination "AIROPITO7 won on time"]

1. d4 {[%clk 0:03:00.9]} 1... Nf6 {[%clk 0:02:58.5]} 2. Nf3 {[%clk 0:03:00.9]}
2... d5 {[%clk 0:02:57.4]} 3. Bg5 {[%clk 0:03:00.2]} 3... e6 {[%clk 0:02:57.1]}
4. Nbd2 {[%clk 0:03:00.1]} 4... Be7 {[%clk 0:02:53.7]} 5. e3 {[%clk 0:02:47.4]}
5... c5 {[%clk 0:02:52.8]} 6. c3 {[%clk 0:02:47.5]} 6... Nc6 {[%clk 0:02:52.7]}
7. Bd3 {[%clk 0:02:47.6]} 7... h6 {[%clk 0:02:52.6]} 8. Bf4 {[%clk 0:02:47.3]}
8... O-O {[%clk 0:02:46.5]} 9. h3 {[%clk 0:02:46]} 9... Bd6 {[%clk 0:02:43.2]}
10. Bxd6 {[%clk 0:02:45.5]} 10... Qxd6 {[%clk 0:02:41.8]} 11. Qa4 {[%clk
0:02:44.1]} 11... e5 {[%clk 0:02:38.8]} 12. dxe5 {[%clk 0:02:43.4]} 12... Nxe5
{[%clk 0:02:39.7]} 13. Nxe5 {[%clk 0:02:39.8]} 13... Qxe5 {[%clk 0:02:40.6]} 14.
Nf3 {[%clk 0:02:39.3]} 14... Qe7 {[%clk 0:02:39.6]} 15. O-O {[%clk 0:02:38.8]}
15... Bd7 {[%clk 0:02:32.5]} 16. Qa3 {[%clk 0:02:38]} 16... b6 {[%clk 0:02:25]}
17. Rad1 {[%clk 0:02:34.3]} 17... Rfe8 {[%clk 0:02:24.4]} 18. Bc2 {[%clk
0:02:25.7]} 18... Bc6 {[%clk 0:02:15.5]} 19. Ba4 {[%clk 0:02:25.1]} 19... b5
{[%clk 0:02:11.4]} 20. Bc2 {[%clk 0:02:23.8]} 20... a5 {[%clk 0:02:10.9]} 21. b3
{[%clk 0:02:16.2]} 21... d4 {[%clk 0:01:35]} 22. cxd4 {[%clk 0:02:14.2]} 22...
Bxf3 {[%clk 0:01:26.6]} 23. gxf3 {[%clk 0:02:14.5]} 23... Qd7 {[%clk 0:01:13.4]}
24. Qxc5 {[%clk 0:02:07.8]} 24... Qxh3 {[%clk 0:01:12.7]} 25. Qf5 {[%clk
0:02:08]} 25... Qh4 {[%clk 0:01:12.5]} 26. Kg2 {[%clk 0:02:01.3]} 26... g6
{[%clk 0:01:07]} 27. Qh3 {[%clk 0:02:01.3]} 27... Qxh3+ {[%clk 0:00:36.6]} 28.
Kxh3 {[%clk 0:02:00.2]} 28... Rac8 {[%clk 0:00:37.5]} 29. Rc1 {[%clk 0:01:54.4]}
29... Rc3 {[%clk 0:00:34.1]} 30. Be4 {[%clk 0:01:44.9]} 30... Rec8 {[%clk
0:00:29.5]} 31. Rxc3 {[%clk 0:01:42.6]} 31... Rxc3 {[%clk 0:00:30.4]} 32. Kg3
{[%clk 0:01:29.3]} 32... Ne8 {[%clk 0:00:28.6]} 33. Kf4 {[%clk 0:01:18.2]} 33...
Kg7 {[%clk 0:00:24.3]} 34. Ke5 {[%clk 0:01:18]} 34... a4 {[%clk 0:00:21]} 35.
bxa4 {[%clk 0:01:15.9]} 35... bxa4 {[%clk 0:00:21.9]} 36. Rb1 {[%clk 0:01:15.9]}
36... Ra3 {[%clk 0:00:16.3]} 37. Rb7 {[%clk 0:01:15.7]} 37... Nf6 {[%clk
0:00:14.9]} 38. Bc6 {[%clk 0:00:59.6]} 38... Rxa2 {[%clk 0:00:13.5]} 39. d5
{[%clk 0:00:55.6]} 39... a3 {[%clk 0:00:12.2]} 40. d6 {[%clk 0:00:54.3]} 40...
Rd2 {[%clk 0:00:12.6]} 41. Ra7 {[%clk 0:00:53.7]} 41... a2 {[%clk 0:00:12.6]}
42. e4 {[%clk 0:00:51.6]} 42... h5 {[%clk 0:00:12.7]} 43. Bd5 {[%clk 0:00:51.9]}
43... Nxd5 {[%clk 0:00:09.4]} 44. exd5 {[%clk 0:00:52.5]} 44... Re2+ {[%clk
0:00:08.4]} 45. Kf4 {[%clk 0:00:51.1]} 45... Re8 {[%clk 0:00:08.5]} 46. Rxa2
{[%clk 0:00:51.2]} 46... Rd8 {[%clk 0:00:08.6]} 47. Ke5 {[%clk 0:00:51.2]} 47...
Re8+ {[%clk 0:00:08.8]} 48. Kd4 {[%clk 0:00:51.6]} 48... Kf6 {[%clk 0:00:09.4]}
49. Kc5 {[%clk 0:00:51.2]} 49... Rc8+ {[%clk 0:00:09]} 50. Kb6 {[%clk
0:00:51.3]} 50... Ke5 {[%clk 0:00:06]} 51. d7 {[%clk 0:00:51.5]} 51... Rf8
{[%clk 0:00:03.9]} 52. Re2+ {[%clk 0:00:50.2]} 52... Kd6 {[%clk 0:00:03.7]} 53.
Re8 {[%clk 0:00:50.1]} 53... Kxd5 {[%clk 0:00:01.8]} 54. Rxf8 {[%clk 0:00:50.3]}
1-0

[Event "*** Titled Tuesday Blitz"]
[Site "Chess.com"]
[Date "2020.10.27"]
[Round "9"]
[White "infinitegiantkiller"]
[Black "AldokhinIvan"]
[Result "1-0"]
[WhiteElo "2439"]
[BlackElo "2556"]
[TimeControl "180+1"]
[EndTime "11:45:43 PDT"]
[Termination "infinitegiantkiller won on time"]

1. d4 {[%clk 0:03:00.9]} 1... Nf6 {[%clk 0:02:59.3]} 2. c4 {[%clk 0:03:01.1]}
2... g6 {[%clk 0:02:58.5]} 3. Nc3 {[%clk 0:03:01.2]} 3... Bg7 {[%clk 0:02:58.7]}
4. e4 {[%clk 0:03:01.6]} 4... d6 {[%clk 0:02:58.7]} 5. Nge2 {[%clk 0:03:02.2]}
5... O-O {[%clk 0:02:58.8]} 6. f3 {[%clk 0:03:02.7]} 6... c5 {[%clk 0:02:54.7]}
7. Be3 {[%clk 0:03:02.8]} 7... cxd4 {[%clk 0:02:53.4]} 8. Nxd4 {[%clk
0:03:03.7]} 8... Nc6 {[%clk 0:02:47.3]} 9. Qd2 {[%clk 0:03:03.1]} 9... Bd7
{[%clk 0:02:42]} 10. Be2 {[%clk 0:03:00.9]} 10... a6 {[%clk 0:02:36.3]} 11. O-O
{[%clk 0:03:00.4]} 11... Re8 {[%clk 0:02:36.7]} 12. Rac1 {[%clk 0:02:58.5]}
12... Rc8 {[%clk 0:02:22.4]} 13. Nxc6 {[%clk 0:02:46.5]} 13... Bxc6 {[%clk
0:02:15.8]} 14. Rc2 {[%clk 0:02:46.8]} 14... Nd7 {[%clk 0:02:12.3]} 15. Rfc1
{[%clk 0:02:37.1]} 15... Ne5 {[%clk 0:01:58.8]} 16. f4 {[%clk 0:02:19.3]} 16...
Nd7 {[%clk 0:01:53.8]} 17. Bd4 {[%clk 0:02:17.9]} 17... e5 {[%clk 0:01:37.6]}
18. Be3 {[%clk 0:02:14.7]} 18... exf4 {[%clk 0:01:35.3]} 19. Bxf4 {[%clk
0:02:15.6]} 19... Ne5 {[%clk 0:01:34.8]} 20. Nd5 {[%clk 0:02:13.8]} 20... Bxd5
{[%clk 0:01:32.6]} 21. cxd5 {[%clk 0:02:14.7]} 21... Rxc2 {[%clk 0:01:29]} 22.
Qxc2 {[%clk 0:02:15.6]} 22... Qb6+ {[%clk 0:01:23.3]} 23. Kh1 {[%clk 0:02:10.1]}
23... h5 {[%clk 0:01:06]} 24. h3 {[%clk 0:02:05.1]} 24... Qf2 {[%clk 0:01:03.7]}
25. Bf3 {[%clk 0:02:01.4]} 25... Qd4 {[%clk 0:00:57.5]} 26. Rf1 {[%clk
0:01:23.2]} 26... b5 {[%clk 0:00:33.9]} 27. b3 {[%clk 0:01:14.1]} 27... Nd3
{[%clk 0:00:31.2]} 28. Bxd6 {[%clk 0:01:10.2]} 28... Be5 {[%clk 0:00:21.1]} 29.
Bxe5 {[%clk 0:01:07.4]} 29... Nxe5 {[%clk 0:00:22]} 30. Rd1 {[%clk 0:01:04.7]}
30... Qe3 {[%clk 0:00:20.5]} 31. Qe2 {[%clk 0:00:58.9]} 31... Qxe2 {[%clk
0:00:20.5]} 32. Bxe2 {[%clk 0:00:59.8]} 32... Rc8 {[%clk 0:00:20.9]} 33. d6
{[%clk 0:00:57]} 33... Kf8 {[%clk 0:00:20.4]} 34. a4 {[%clk 0:00:53.8]} 34...
Rc2 {[%clk 0:00:19]} 35. Bf1 {[%clk 0:00:51.2]} 35... Ke8 {[%clk 0:00:11.3]} 36.
axb5 {[%clk 0:00:49.5]} 36... axb5 {[%clk 0:00:12.2]} 37. Bxb5+ {[%clk
0:00:49.9]} 37... Kd8 {[%clk 0:00:12.3]} 38. Ra1 {[%clk 0:00:43.5]} 38... Rc8
{[%clk 0:00:11.2]} 39. Ra7 {[%clk 0:00:29.6]} 39... Rb8 {[%clk 0:00:10.6]} 40.
Ba4 {[%clk 0:00:25]} 40... g5 {[%clk 0:00:02.6]} 41. Re7 {[%clk 0:00:24.9]} 1-0

[Event "*** Titled Tuesday Blitz"]
[Site "Chess.com"]
[Date "2020.10.27"]
[Round "9"]
[White "Deepweb2020"]
[Black "Roza_Idrisova"]
[Result "1-0"]
[WhiteElo "2231"]
[BlackElo "2186"]
[TimeControl "180+1"]
[EndTime "11:45:43 PDT"]
[Termination "Deepweb2020 won on time"]

1. d4 {[%clk 0:03:00.9]} 1... d5 {[%clk 0:02:59.9]} 2. c4 {[%clk 0:02:59]} 2...
c6 {[%clk 0:03:00.3]} 3. cxd5 {[%clk 0:02:59]} 3... cxd5 {[%clk 0:02:58.5]} 4.
Nc3 {[%clk 0:02:59.7]} 4... Nc6 {[%clk 0:02:59]} 5. Bf4 {[%clk 0:02:59.8]} 5...
Nf6 {[%clk 0:02:59.5]} 6. e3 {[%clk 0:02:59.5]} 6... Bf5 {[%clk 0:02:59.2]} 7.
Bd3 {[%clk 0:02:59.3]} 7... Bxd3 {[%clk 0:02:58.5]} 8. Qxd3 {[%clk 0:03:00]}
8... e6 {[%clk 0:02:58.7]} 9. a3 {[%clk 0:02:59.5]} 9... Bd6 {[%clk 0:02:58.7]}
10. Bxd6 {[%clk 0:02:59.7]} 10... Qxd6 {[%clk 0:02:58.6]} 11. f4 {[%clk
0:03:00.6]} 11... O-O {[%clk 0:02:57.9]} 12. Nf3 {[%clk 0:02:59.9]} 12... a6
{[%clk 0:02:58]} 13. O-O {[%clk 0:02:59.5]} 13... b5 {[%clk 0:02:56.6]} 14. b4
{[%clk 0:02:58.2]} 14... Rfc8 {[%clk 0:02:50.5]} 15. Nd2 {[%clk 0:02:57.6]}
15... g6 {[%clk 0:02:41.6]} 16. Nb3 {[%clk 0:02:55.8]} 16... Nd7 {[%clk
0:02:36.3]} 17. Nc5 {[%clk 0:02:55.1]} 17... Nb6 {[%clk 0:02:35.8]} 18. g4
{[%clk 0:02:42.7]} 18... Nc4 {[%clk 0:02:32.8]} 19. f5 {[%clk 0:02:33.5]} 19...
exf5 {[%clk 0:02:16.1]} 20. gxf5 {[%clk 0:02:32]} 20... Re8 {[%clk 0:02:14.1]}
21. Rae1 {[%clk 0:02:30.9]} 21... Nxa3 {[%clk 0:02:00.2]} 22. Nxd5 {[%clk
0:02:11.5]} 22... Qxd5 {[%clk 0:01:48.8]} 23. Qxa3 {[%clk 0:02:11.1]} 23... a5
{[%clk 0:01:35.2]} 24. Qd3 {[%clk 0:01:36.1]} 24... axb4 {[%clk 0:01:17.9]} 25.
Qxb5 {[%clk 0:01:31.1]} 25... Ra2 {[%clk 0:01:04.6]} 26. Re2 {[%clk 0:01:26.6]}
26... Rxe2 {[%clk 0:00:49.1]} 27. Qxe2 {[%clk 0:01:26.8]} 27... Nxd4 {[%clk
0:00:46.9]} 28. Qd3 {[%clk 0:01:06.4]} 28... Nf3+ {[%clk 0:00:43]} 29. Kf2
{[%clk 0:00:54.4]} 29... Qxc5 {[%clk 0:00:37.7]} 30. Kxf3 {[%clk 0:00:53]} 30...
Qe5 {[%clk 0:00:20.1]} 31. fxg6 {[%clk 0:00:50.2]} 31... hxg6 {[%clk 0:00:19.8]}
32. Kg2 {[%clk 0:00:36.5]} 32... Qg5+ {[%clk 0:00:17.3]} 33. Kf3 {[%clk
0:00:35.8]} 33... Re6 {[%clk 0:00:13]} 34. Ke2 {[%clk 0:00:31.8]} 34... Qh5+
{[%clk 0:00:06.4]} 35. Rf3 {[%clk 0:00:28.8]} 35... Qxh2+ {[%clk 0:00:05.5]} 36.
Rf2 {[%clk 0:00:28.4]} 36... Qh5+ {[%clk 0:00:05]} 37. Ke1 {[%clk 0:00:22.6]}
1-0

[Event "*** Titled Tuesday Blitz"]
[Site "Chess.com"]
[Date "2020.10.27"]
[Round "9"]
[White "ArjunErigaisi2003"]
[Black "Zhigalko_Sergei"]
[Result "0-1"]
[WhiteElo "2990"]
[BlackElo "2920"]
[TimeControl "180+1"]
[EndTime "11:45:44 PDT"]
[Termination "Zhigalko_Sergei won by resignation"]

1. c4 {[%clk 0:02:08.4]} 1... e5 {[%clk 0:02:47.6]} 2. Nc3 {[%clk 0:02:08.5]}
2... Nf6 {[%clk 0:02:47.7]} 3. e3 {[%clk 0:02:08.7]} 3... Nc6 {[%clk 0:02:47.5]}
4. Nf3 {[%clk 0:02:08.7]} 4... Bb4 {[%clk 0:02:47]} 5. Nd5 {[%clk 0:02:09.2]}
5... Ba5 {[%clk 0:02:47.3]} 6. a3 {[%clk 0:02:07]} 6... e4 {[%clk 0:02:38.9]} 7.
b4 {[%clk 0:02:00.6]} 7... Bb6 {[%clk 0:02:27.4]} 8. Nxb6 {[%clk 0:01:16.2]}
8... axb6 {[%clk 0:02:25.9]} 9. Nd4 {[%clk 0:01:16.3]} 9... Nxb4 {[%clk
0:02:13.8]} 10. Bb2 {[%clk 0:01:16.8]} 10... Nc6 {[%clk 0:01:42.9]} 11. Nf5
{[%clk 0:01:17.2]} 11... Ra5 {[%clk 0:01:31]} 12. g4 {[%clk 0:01:02.6]} 12...
O-O {[%clk 0:01:24.1]} 13. Bc3 {[%clk 0:00:53.3]} 13... Rc5 {[%clk 0:01:18.6]}
14. Rg1 {[%clk 0:00:50.6]} 14... Ne5 {[%clk 0:01:12.9]} 15. Be2 {[%clk
0:00:45.7]} 15... d6 {[%clk 0:01:08.3]} 16. Bd4 {[%clk 0:00:37.9]} 16... Ra5
{[%clk 0:01:06.6]} 17. Bc3 {[%clk 0:00:37.6]} 17... Rc5 {[%clk 0:00:52.3]} 18.
Bd4 {[%clk 0:00:37.8]} 18... Bxf5 {[%clk 0:00:52.8]} 19. gxf5 {[%clk 0:00:32.8]}
19... Qd7 {[%clk 0:00:53]} 20. Bxc5 {[%clk 0:00:29.3]} 20... bxc5 {[%clk
0:00:53.9]} 21. d4 {[%clk 0:00:27.6]} 21... cxd4 {[%clk 0:00:44.4]} 22. exd4
{[%clk 0:00:27.9]} 22... Nc6 {[%clk 0:00:44.7]} 23. Bg4 {[%clk 0:00:26.3]} 23...
d5 {[%clk 0:00:38.3]} 24. c5 {[%clk 0:00:25.9]} 24... Ra8 {[%clk 0:00:36.6]} 25.
Qd2 {[%clk 0:00:18]} 25... Ra4 {[%clk 0:00:34]} 26. Bd1 {[%clk 0:00:18.5]} 26...
Rxd4 {[%clk 0:00:29.6]} 27. Rxg7+ {[%clk 0:00:15.3]} 27... Kxg7 {[%clk
0:00:23.1]} 28. Qg5+ {[%clk 0:00:15.9]} 28... Kf8 {[%clk 0:00:23]} 29. Qxf6
{[%clk 0:00:16.8]} 29... Qd8 {[%clk 0:00:09.1]} 30. Qh6+ {[%clk 0:00:09.4]}
30... Ke8 {[%clk 0:00:07.7]} 31. Rb1 {[%clk 0:00:08.2]} 31... Qe7 {[%clk
0:00:05.2]} 32. Rxb7 {[%clk 0:00:05.1]} 32... Qxc5 {[%clk 0:00:05.3]} 33. Rxc7
{[%clk 0:00:03.4]} 33... Qc3+ {[%clk 0:00:05]} 34. Ke2 {[%clk 0:00:04.1]} 34...
Qf3+ {[%clk 0:00:04.9]} 0-1

[Event "*** Titled Tuesday Blitz"]
[Site "Chess.com"]
[Date "2020.10.27"]
[Round "9"]
[White "Supernotar"]
[Black "Ginger_GM"]
[Result "1-0"]
[WhiteElo "2861"]
[BlackElo "2601"]
[TimeControl "180+1"]
[EndTime "11:45:48 PDT"]
[Termination "Supernotar won by resignation"]

1. d4 {[%clk 0:03:00.9]} 1... e6 {[%clk 0:02:59.9]} 2. c4 {[%clk 0:03:01.2]}
2... f5 {[%clk 0:02:59.9]} 3. Nf3 {[%clk 0:03:01.1]} 3... Nf6 {[%clk 0:02:59.3]}
4. g3 {[%clk 0:03:01.6]} 4... Be7 {[%clk 0:02:59.7]} 5. Bg2 {[%clk 0:03:02.1]}
5... O-O {[%clk 0:03:00.3]} 6. O-O {[%clk 0:03:02.4]} 6... d6 {[%clk 0:03:00.9]}
7. Nc3 {[%clk 0:03:02.6]} 7... Ne4 {[%clk 0:03:01.1]} 8. Nxe4 {[%clk 0:02:57.5]}
8... fxe4 {[%clk 0:03:01.9]} 9. Nd2 {[%clk 0:02:57.5]} 9... d5 {[%clk
0:03:02.4]} 10. f3 {[%clk 0:02:55.6]} 10... Nc6 {[%clk 0:02:59.9]} 11. e3 {[%clk
0:02:42.7]} 11... exf3 {[%clk 0:02:59.2]} 12. Nxf3 {[%clk 0:02:27]} 12... b6
{[%clk 0:02:54.8]} 13. b3 {[%clk 0:02:16.4]} 13... Bb7 {[%clk 0:02:50.7]} 14.
Bb2 {[%clk 0:02:13.6]} 14... a5 {[%clk 0:02:49.6]} 15. a4 {[%clk 0:02:04.8]}
15... Bf6 {[%clk 0:02:40.4]} 16. Rc1 {[%clk 0:01:55.6]} 16... Nb4 {[%clk
0:02:39.8]} 17. Qe2 {[%clk 0:01:49.1]} 17... c5 {[%clk 0:02:20.9]} 18. Rfd1
{[%clk 0:01:45.9]} 18... Qe7 {[%clk 0:02:19.8]} 19. Kh1 {[%clk 0:01:31.8]} 19...
Kh8 {[%clk 0:02:19.4]} 20. Ne5 {[%clk 0:01:03.5]} 20... Bxe5 {[%clk 0:02:18.4]}
21. dxe5 {[%clk 0:01:03.8]} 21... Rad8 {[%clk 0:02:04.3]} 22. cxd5 {[%clk
0:00:54.8]} 22... Bxd5 {[%clk 0:02:01.6]} 23. e4 {[%clk 0:00:44.8]} 23... Bxb3
{[%clk 0:01:58.3]} 24. Rd6 {[%clk 0:00:45]} 24... Rxd6 {[%clk 0:01:45.5]} 25.
exd6 {[%clk 0:00:45.1]} 25... Qxd6 {[%clk 0:01:45.9]} 26. Qe3 {[%clk 0:00:31.8]}
26... Nd3 {[%clk 0:01:27.1]} 27. Rf1 {[%clk 0:00:30.2]} 27... Nxb2 {[%clk
0:01:23.6]} 28. Rxf8+ {[%clk 0:00:24.8]} 28... Qxf8 {[%clk 0:01:23.5]} 29. Qxb3
{[%clk 0:00:25.7]} 29... Qf2 {[%clk 0:01:14.2]} 30. h4 {[%clk 0:00:25.9]} 30...
c4 {[%clk 0:01:11.7]} 31. Qb5 {[%clk 0:00:24.6]} 31... h6 {[%clk 0:00:57.7]} 32.
e5 {[%clk 0:00:24.9]} 32... Nd3 {[%clk 0:00:44.1]} 33. Qe8+ {[%clk 0:00:21.6]}
33... Kh7 {[%clk 0:00:19.3]} 34. Be4+ {[%clk 0:00:21.6]} 34... Qf5 {[%clk
0:00:19.6]} 35. Bxf5+ {[%clk 0:00:20.8]} 35... exf5 {[%clk 0:00:20.2]} 36. Qc8
{[%clk 0:00:19.4]} 36... Kg6 {[%clk 0:00:19.1]} 37. Qxc4 {[%clk 0:00:18.7]}
37... Nf2+ {[%clk 0:00:18.6]} 38. Kg2 {[%clk 0:00:17.9]} 38... Ng4 {[%clk
0:00:19.5]} 39. Qc6+ {[%clk 0:00:17.5]} 39... Kh5 {[%clk 0:00:19.4]} 40. Qxb6
{[%clk 0:00:17.2]} 40... g5 {[%clk 0:00:19.1]} 41. hxg5 {[%clk 0:00:16.1]} 41...
hxg5 {[%clk 0:00:18.9]} 42. e6 {[%clk 0:00:16.2]} 42... Nf6 {[%clk 0:00:16.4]}
43. e7 {[%clk 0:00:15.1]} 43... f4 {[%clk 0:00:14.7]} 44. gxf4 {[%clk
0:00:11.9]} 44... gxf4 {[%clk 0:00:14.3]} 45. Qxf6 {[%clk 0:00:10.4]} 45... f3+
{[%clk 0:00:14.8]} 46. Kf1 {[%clk 0:00:09.9]} 1-0